bitfinex-derivatives/quotes_ETHF0:USTF0_20251021
["timestamp","ask_amount","ask_price","bid_price","bid_amount"]
[1761028203148,0.90727,3882.9,3882.8,0.3438]
[1761028203349,0.90727,3882.9,3882.7,0.0029291]
[1761028203552,0.779,3882.8,3882.7,0.0029291]
[1761028203737,2.17999175,3882.8,3882.7,0.0029291]
[1761028204540,0.90736,3882.1,3882.0,0.91639268]
[1761028204745,0.90739,3881.9,3881.8,0.91639268]
[1761028204953,0.779,3881.8,3881.7,1.47159268]
[1761028205349,0.779,3881.8,3881.4,1.26019268]
[1761028205350,0.90743,3881.6,3881.4,1.26019268]
[1761028205545,0.779,3881.5,3881.4,1.47382687]
[1761028205845,1.86460175,3881.8,3881.4,1.47382687]
[1761028205846,0.5645,3881.8,3881.5,0.46364]
[1761028206049,0.779,3882.1,3882.0,0.1306]
[1761028206244,0.2145,3882.1,3882.0,0.904]
[1761028207045,0.779,3882.4,3882.3,0.7734]
[1761028207546,0.2145,3882.4,3882.3,0.7734]
[1761028207949,0.2145,3882.4,3882.1,0.46355]
[1761028207950,0.779,3882.1,3882.0,0.5552]
[1761028208946,0.779,3882.1,3882.0,0.7734]
[1761028210553,0.779,3882.1,3882.0,0.904]
[1761028211162,0.779,3882.1,3882.0,0.7734]
[1761028212057,0.779,3882.1,3882.0,0.5552]
[1761028212250,6.74359868,3882.9,3882.0,0.5552]
[1761028212251,1.24253,3882.4,3882.3,0.2182]
[1761028212457,1.24253,3882.4,3882.3,0.7734]
[1761028212757,0.779,3882.4,3882.3,0.7734]
[1761028213757,0.4438,3882.4,3882.3,0.7734]
[1761028214254,0.3352,3882.6,3882.3,0.7734]
[1761028214456,0.33738756,3883.4,3882.9,0.7734]
[1761028214654,0.21668756,3883.4,3883.3,0.7734]
[1761028215353,0.00218756,3883.4,3883.3,0.7734]
[1761028216061,0.78118756,3883.4,3883.3,0.7734]
[1761028216447,0.7684,3883.1,3883.0,0.2114]
[1761028216853,0.7684,3883.1,3883.0,0.8885]
[1761028216854,0.4283,3883.1,3883.0,0.8885]
[1761028217053,0.2145,3883.1,3883.0,0.8885]
[1761028217656,0.00218756,3883.4,3883.3,0.7571]
[1761028218557,0.68994319,3884.3,3884.2,1.2204]
[1761028218752,0.4282,3885.1,3884.7,0.3189]
[1761028218960,0.4282,3885.1,3885.0,0.8956]
[1761028219459,0.43069221,3885.1,3885.0,0.89844598]
[1761028219665,0.77079221,3885.1,3885.0,0.00284598]
[1761028219968,0.77079221,3885.1,3885.0,0.89844598]
[1761028220157,0.77079221,3885.1,3885.0,0.75994598]
[1761028221366,0.00249221,3885.1,3885.0,0.89844598]
[1761028221963,0.4282,3886.0,3885.9,0.7571]
[1761028222167,0.2144,3886.1,3886.0,0.8956]
[1761028222858,0.7683,3885.6,3885.5,0.2185]
[1761028223060,0.7683,3885.1,3885.0,0.44104598]
[1761028223363,0.7683,3885.1,3885.0,0.75994598]
[1761028223957,0.7683,3885.1,3885.0,0.00284598]
[1761028224760,5.7683,3885.1,3885.0,0.00284598]
[1761028225559,1.23161,3884.2,3884.1,0.5374]
[1761028225757,1.23165,3883.9,3883.8,0.5374]
[1761028225957,0.89155,3883.9,3883.8,0.7571]
[1761028226264,0.2144,3883.9,3883.8,0.7571]
[1761028226469,0.67773,3884.1,3883.9,0.3189]
[1761028226762,1.23165,3883.9,3883.8,0.5405132]
[1761028226968,1.23165,3883.9,3883.8,0.0031132]
[1761028227758,1.23165,3883.9,3883.8,0.5653132]
[1761028227960,1.23165,3883.9,3883.8,0.2216132]
[1761028228562,1.23165,3883.9,3883.8,0.5653132]
[1761028230757,1.23165,3883.9,3883.8,0.0031132]
[1761028231364,1.23165,3883.9,3883.8,0.5722132]
[1761028231564,1.23165,3883.9,3883.8,0.0031132]
[1761028232867,1.23165,3883.9,3883.8,0.2285132]
[1761028233074,1.23165,3883.9,3883.8,0.7873132]
[1761028233771,0.89155,3883.9,3883.8,0.7873132]
[1761028235876,1.22835,3883.9,3883.8,0.7873132]
[1761028236876,1.22835,3883.9,3883.8,0.5722132]
[1761028237183,1.22835,3883.9,3883.8,0.0031132]
[1761028237976,1.22835,3883.9,3883.8,0.5722132]
[1761028238765,1.22595,3883.9,3883.8,0.7873132]
[1761028239378,1.22595,3883.9,3883.8,0.0031132]
[1761028239678,5.88640448,3883.9,3883.8,0.0031132]
[1761028240178,1.2274,3882.6,3882.5,0.5691]
[1761028240383,0.2157,3882.2,3882.1,0.4405]
[1761028240984,0.00288928,3882.2,3882.1,1.25004261]
[1761028241193,0.76678928,3882.2,3882.1,0.78647261]
[1761028241479,0.42998928,3882.2,3882.1,0.78647261]
[1761028242182,0.00288928,3882.2,3882.1,0.78647261]
[1761028249586,0.21858928,3882.2,3882.1,0.78647261]
[1761028250083,0.21858928,3882.2,3882.1,0.57137261]
[1761028250084,0.76678928,3882.2,3882.1,0.57137261]
[1761028250389,0.76678928,3882.2,3882.1,0.00227261]
[1761028253274,5.76678928,3882.2,3882.1,0.00227261]
[1761028253482,1.22755,3881.5,3881.4,0.5691]
[1761028253977,0.7639,3881.5,3881.4,0.5691]
[1761028254185,0.7639,3881.5,3881.4,0.7842]
[1761028254393,0.7639,3881.5,3881.4,0.78648379]
[1761028254687,0.7639,3881.5,3881.4,0.57138379]
[1761028255287,0.7639,3881.5,3881.4,0.78648379]
[1761028255589,0.7639,3881.5,3881.4,0.57138379]
[1761028256178,41.95897,3882.1,3881.4,0.57138379]
[1761028256179,0.920537,3882.8,3882.1,0.2254]
[1761028256483,1.85022805,3883.5,3882.6,0.4405]
[1761028256484,0.2157,3882.7,3882.6,0.4405]
[1761028256692,0.7639,3882.7,3882.6,0.4405]
[1761028256883,0.4271,3882.7,3882.6,0.4405]
[1761028257078,0.7639,3882.7,3882.6,0.7842]
[1761028257283,0.76716383,3882.7,3882.6,0.2254]
[1761028257689,0.76716383,3882.7,3882.6,0.5416]
[1761028258084,0.4254,3882.5,3882.4,0.5433]
[1761028258285,0.7397,3882.5,3882.4,0.5433]
[1761028259996,0.7397,3882.5,3882.4,0.7641]
[1761028260186,0.4254,3882.5,3882.4,0.7641]
[1761028260584,0.21346383,3882.7,3882.6,0.7641]
[1761028261083,0.74296383,3882.7,3882.6,0.3162]
[1761028261294,0.74296383,3882.7,3881.9,0.91639268]
[1761028261295,0.7397,3882.0,3881.9,0.5433]
[1761028261792,0.7397,3882.0,3881.6,0.3162]
[1761028261997,0.7397,3881.7,3881.6,0.2271]
[1761028262399,0.7397,3881.7,3881.6,0.5433]
[1761028262994,0.2102,3882.0,3881.8,0.3162]
[1761028263189,0.2102,3882.0,3881.9,0.7641]
[1761028263492,0.67376,3882.3,3882.0,0.4485]
[1761028263693,1.20326,3882.3,3882.2,0.5433]
[1761028264492,0.2102,3882.3,3882.2,1.22766]
[1761028264692,0.2102,3882.3,3882.2,0.7641]
[1761028265099,0.7397,3882.3,3882.2,0.7641]
[1761028266297,1.20322,3882.6,3882.5,0.2271]
[1761028266507,1.20322,3882.6,3882.5,0.5433]
[1761028266700,0.00326383,3882.7,3882.6,1.22761]
[1761028267001,0.00326383,3882.7,3882.6,0.7641]
[1761028267302,0.21346383,3882.7,3882.6,0.7641]
[1761028267702,0.00326383,3882.7,3882.6,0.7641]
[1761028268398,0.21346383,3882.7,3882.6,0.7641]
[1761028270594,0.74296383,3882.7,3882.6,0.7641]
[1761028272206,0.74296383,3882.7,3882.6,0.5433]
[1761028272611,0.2102,3882.4,3882.3,0.5433]
[1761028272906,1.20324,3882.4,3882.3,0.5433]
[1761028273103,0.4254,3882.1,3882.0,0.5433]
[1761028273293,0.7397,3882.1,3882.0,1.35998]
[1761028273497,0.7397,3882.1,3882.0,0.7641]
[1761028273706,0.1329,3882.5,3881.5,0.1323]
[1761028273707,0.7397,3881.9,3881.8,0.5433]
[1761028273900,0.4254,3881.9,3881.8,0.7641]
[1761028274809,0.2102,3882.2,3882.1,0.7641]
[1761028275105,0.74296383,3882.7,3882.6,0.5433]
[1761028275503,0.74296383,3882.7,3882.6,0.7641]
[1761028276104,0.4254,3882.4,3882.3,0.91145]
[1761028276501,0.4254,3882.4,3882.3,1.22455]
[1761028276705,0.4254,3882.4,3882.3,0.761]
[1761028278412,0.7598,3882.4,3882.0,0.4454]
[1761028278605,1.23416,3882.2,3882.1,0.7532]
[1761028280404,1.2342,3881.9,3881.8,0.5392]
[1761028280908,1.2342,3881.9,3881.8,0.7532]
[1761028281101,0.8998,3881.9,3881.8,0.7532]
[1761028281608,0.2247,3881.9,3881.8,0.7532]
[1761028281908,0.68828,3882.1,3882.0,0.8918]
[1761028282101,0.68826,3882.3,3882.0,0.5787]
[1761028282303,0.79796,3882.2,3882.0,0.2261]
[1761028282502,0.46356,3882.2,3882.1,0.3131]
[1761028282707,0.2247,3882.2,3882.1,1.21677]
[1761028282905,0.68826,3882.2,3882.1,0.7532]
[1761028283109,0.2247,3882.2,3882.1,1.21677]
[1761028283309,0.68826,3882.2,3882.1,0.7532]
[1761028283815,0.2247,3882.2,3882.1,0.7532]
[1761028284112,0.68826,3882.2,3882.1,0.7532]
[1761028285412,1.04573339,3884.4,3883.1,2.578]
[1761028285625,7.40563998,3886.4,3886.1,0.46309]
[1761028285912,0.136,3886.5,3886.3,1.37946268]
[1761028286224,0.136,3886.5,3886.3,0.46307]
[1761028286404,0.00196709,3886.5,3886.4,6.17249717]
[1761028286807,0.00196709,3886.5,3886.4,1.17249717]
[1761028287008,0.00196709,3886.5,3886.4,1.3825679]
[1761028287415,0.33636709,3886.5,3886.4,1.3825679]
[1761028287914,0.00196709,3886.5,3886.4,1.3825679]
[1761028288505,0.00196709,3886.5,3886.4,2.7459382]
[1761028289315,0.00196709,3886.5,3886.4,6.78642179]
[1761028290409,0.31616709,3886.5,3886.4,6.78642179]
[1761028290918,0.31616709,3886.5,3886.4,11.78642179]
[1761028292412,0.31616709,3886.5,3886.4,1.6148002]
[1761028292620,0.31616709,3886.5,3886.4,0.70943717]
[1761028293415,0.45506709,3886.5,3886.4,0.70943717]
[1761028295417,0.90256709,3886.5,3886.4,1.38728076]
[1761028297214,0.45506709,3886.5,3886.4,1.38728076]
[1761028297418,0.90256709,3886.5,3886.4,1.38728076]
[1761028297917,1.38586709,3886.5,3886.4,1.38728076]
[1761028298117,0.1389,3886.0,3885.9,0.67784359]
[1761028298324,1.245,3885.7,3885.6,0.46315]
[1761028298620,11.01740805,3885.5,3885.2,0.67784359]
[1761028298815,0.9308,3885.3,3885.1,0.20769429]
[1761028299122,0.7617,3885.2,3885.1,0.46638347]
[1761028299723,14.94770805,3885.2,3884.6,0.67784359]
[1761028299919,0.3142,3884.4,3884.1,0.67784359]
[1761028300219,0.3142,3884.4,3884.2,0.46332]
[1761028300421,0.3142,3884.3,3884.2,0.46332]
[1761028300724,0.3142,3884.3,3884.0,1.14118359]
[1761028301017,0.3142,3884.3,3884.1,0.46333]
[1761028301226,0.3142,3884.3,3884.1,1.14117359]
[1761028301630,0.3142,3884.3,3884.2,0.67784359]
[1761028302224,0.3142,3884.2,3884.1,1.14117359]
[1761028302424,0.3142,3884.2,3884.1,0.67784359]
[1761028304127,0.3142,3884.2,3884.0,6.77575891]
[1761028305429,0.7617,3884.2,3884.1,0.90536303]
[1761028306220,1.245,3884.1,3884.0,0.00320199]
[1761028306422,10.87850805,3884.1,3884.0,0.00320199]
[1761028306822,0.1389,3884.5,3884.0,0.90856502]
[1761028307027,10.08100805,3884.4,3884.2,1.14317419]
[1761028307328,10.08100805,3884.4,3884.3,0.67985419]
[1761028307627,0.4475,3884.4,3884.3,0.90536303]
[1761028308026,0.9308,3884.4,3884.3,0.90536303]
[1761028308828,10.87850805,3884.4,3884.3,0.90536303]
[1761028309025,0.1389,3884.5,3884.4,0.4633]
[1761028309222,0.04259087,3884.9,3884.7,0.46325]
[1761028309421,0.49009087,3884.9,3884.8,1.36127448]
[1761028309725,0.97339087,3884.9,3884.8,1.36127448]
[1761028310129,0.97339087,3884.9,3884.8,2.08355548]
[1761028310428,0.97339087,3884.9,3884.8,0.722281]
[1761028311335,10.412427,3884.9,3884.8,0.722281]
[1761028312227,0.3142,3885.3,3884.8,12.28425489]
[1761028312423,0.11189951,3885.3,3885.2,0.4632]
[1761028312725,10.48173564,3885.3,3885.2,0.722281]
[1761028314229,10.48173564,3885.3,3885.2,2.54084837]
[1761028315028,9.99843564,3885.3,3885.2,0.722281]
[1761028315226,6.52387802,3885.3,3885.2,0.722281]
[1761028316732,6.97137802,3885.3,3885.2,0.722281]
[1761028316935,7.45467802,3885.3,3885.2,0.722281]
[1761028317137,7.45467802,3885.3,3885.2,2.54777067]
[1761028317333,7.76887802,3885.3,3885.2,2.54777067]
[1761028317529,7.76887802,3885.3,3885.2,0.722281]
[1761028320427,12.76887802,3885.3,3885.2,0.722281]
[1761028321135,12.76887802,3885.3,3885.2,1.63646907]
[1761028321537,12.76887802,3885.3,3885.2,0.722281]
[1761028321736,12.76887802,3885.3,3885.2,1.40817023]
[1761028322237,12.76887802,3885.3,3885.2,0.722281]
[1761028323234,12.76887802,3885.3,3885.2,1.40868262]
[1761028323536,12.76887802,3885.3,3885.2,1.40846673]
[1761028324139,12.76887802,3885.3,3885.2,0.722281]
[1761028324531,12.76887802,3885.3,3885.2,1.40868815]
[1761028325138,12.76887802,3885.3,3885.2,0.722281]
[1761028326832,7.76887802,3885.3,3885.2,0.722281]
[1761028327233,7.76887802,3885.3,3885.2,1.63646907]
[1761028328238,48.56887802,3885.3,3885.2,0.722281]
[1761028328637,7.76887802,3885.3,3885.2,0.722281]
[1761028330749,7.76887802,3885.3,3885.2,1.64016203]
[1761028331651,7.76887802,3885.3,3885.2,2.09356311]
[1761028332548,0.3142,3885.3,3885.2,10.37349143]
[1761028332748,0.3142,3885.3,3885.2,9.65121043]
[1761028333451,0.8475,3885.5,3885.3,0.46319]
[1761028333642,0.8475,3885.5,3885.3,2.29793756]
[1761028333942,0.8475,3885.5,3885.4,5.0]
[1761028334148,0.8475,3885.5,3885.4,6.83474756]
[1761028334337,1.8813,3885.5,3885.4,1.83474756]
[1761028334540,2.20558,3885.4,3885.3,1.83474756]
[1761028334741,2.025,3885.0,3884.9,1.83474756]
[1761028334941,1.7424,3884.9,3884.8,1.83474756]
[1761028335151,8.26627802,3884.9,3884.8,1.83474756]
[1761028335338,1.7424,3884.9,3884.8,1.83474756]
[1761028335736,1.7424,3884.8,3884.7,1.83474756]
[1761028335940,8.26627802,3884.8,3884.7,1.83474756]
[1761028336140,1.7424,3884.8,3884.7,1.83474756]
[1761028336542,0.7086,3884.7,3884.6,0.46327]
[1761028336847,1.2279,3884.7,3884.6,0.46327]
[1761028337049,2.025,3884.5,3884.4,0.46329]
[1761028337945,1.7424,3884.4,3884.3,1.8358932]
[1761028338152,1.7424,3884.4,3883.6,1.15848]
[1761028338153,1.7424,3884.3,3884.2,0.46331]
[1761028339945,0.7086,3884.3,3884.2,0.46331]
[1761028340146,1.1864,3884.3,3884.2,0.46331]
[1761028340349,1.6469,3884.3,3884.2,0.46331]
[1761028341056,0.7086,3884.3,3884.2,0.46331]
[1761028341244,1.1864,3884.3,3884.2,0.46331]
[1761028342847,0.977,3885.0,3884.9,0.46324]
[1761028343160,1.4548,3885.0,3884.9,0.46324]
[1761028343451,1.9153,3885.0,3884.9,0.46324]
[1761028343646,0.6944,3884.9,3884.8,6.49113078]
[1761028343853,0.6944,3884.9,3884.8,1.37668035]
[1761028343854,8.15657802,3884.9,3884.8,1.37668035]
[1761028344046,1.6327,3884.8,3884.7,1.37668035]
[1761028344248,8.15657802,3884.8,3884.7,1.37668035]
[1761028345053,1.6327,3884.7,3884.6,0.46327]
[1761028345254,8.15657802,3884.7,3884.6,0.46327]
[1761028347754,0.6759,3884.6,3884.4,5.11450043]
[1761028347959,1.8685,3884.5,3884.4,5.11450043]
[1761028348662,0.6759,3884.8,3884.6,0.46327]
[1761028348853,0.6759,3884.6,3884.5,2.30062628]
[1761028349055,1.5978,3884.6,3884.5,2.30062628]
[1761028350354,1.5978,3884.6,3884.5,0.46328]
[1761028351158,1.1226,3884.6,3884.5,0.46328]
[1761028352158,1.5978,3884.6,3884.5,0.46328]
[1761028353755,0.9466,3884.5,3884.4,6.95184671]
[1761028353960,0.6759,3884.4,3884.3,1.83734628]
[1761028354261,8.58497802,3884.4,3884.3,1.83734628]
[1761028354558,0.6759,3884.2,3884.1,1.83734628]
[1761028354862,1.5978,3884.2,3884.1,0.46333]
[1761028355060,8.12167802,3884.2,3884.1,0.46333]
[1761028355463,8.12167802,3884.2,3884.0,1.84054827]
[1761028355464,1.5978,3884.1,3884.0,0.00320199]
[1761028355665,8.12167802,3884.1,3884.0,1.38180052]
[1761028357268,8.12167802,3884.1,3884.0,0.00320199]
[1761028360771,8.12167802,3884.1,3884.0,2.32122751]
[1761028360969,1.5978,3884.1,3884.0,1.40304539]
[1761028361175,0.6759,3884.1,3884.0,2.78164392]
[1761028361565,0.6759,3884.1,3884.0,1.40304539]
[1761028363169,1.5978,3884.1,3884.0,1.40304539]
[1761028363484,0.6759,3884.1,3884.0,6.40304539]
[1761028363771,1.5978,3884.1,3884.0,1.83850095]
[1761028363975,8.12167802,3884.1,3884.0,0.921294]
[1761028364175,8.12167802,3884.1,3884.0,0.00320199]
[1761028364670,8.12167802,3884.1,3884.0,0.921294]
[1761028364862,1.5978,3884.1,3884.0,1.38034]
[1761028365065,1.1226,3884.1,3884.0,1.38034]
[1761028365274,1.5978,3884.1,3884.0,0.00320199]
[1761028365871,8.12167802,3884.1,3884.0,0.00320199]
[1761028366066,8.12167802,3884.1,3884.0,1.37983002]
[1761028366575,1.5978,3884.1,3884.0,1.37983002]
[1761028366769,1.5978,3884.1,3884.0,0.00320199]
[1761028367470,1.5978,3884.1,3884.0,2.77967854]
[1761028370081,1.1226,3884.1,3884.0,2.77967854]
[1761028370376,0.6759,3884.1,3884.0,1.40304539]
[1761028370783,1.5978,3884.1,3884.0,1.40304539]
[1761028370973,1.5978,3884.1,3884.0,1.3798344]
[1761028370974,8.12167802,3884.1,3884.0,1.3798344]
[1761028371173,1.1226,3884.1,3884.0,2.7796778]
[1761028371374,1.1226,3884.1,3884.0,3.2430178]
[1761028371577,1.5978,3884.1,3884.0,3.2430178]
[1761028372180,8.12167802,3884.1,3884.0,1.3798344]
[1761028372380,8.12167802,3884.1,3884.0,0.00320199]
[1761028372580,8.12167802,3884.1,3884.0,1.8431744]
[1761028372780,1.5978,3884.1,3884.0,1.8431744]
[1761028374578,1.5978,3884.1,3884.0,0.46654199]
[1761028374982,1.5978,3884.1,3884.0,1.84463308]
[1761028376571,8.12167802,3884.1,3884.0,1.84463308]
[1761028376778,8.12167802,3884.1,3884.0,1.38129308]
[1761028376977,8.12167802,3884.1,3884.0,0.46654199]
[1761028377281,8.12167802,3884.1,3884.0,1.38129308]
[1761028377478,8.12167802,3884.1,3884.0,1.84463308]
[1761028377879,8.12167802,3884.1,3884.0,6.38129308]
[1761028378084,8.12167802,3884.1,3884.0,5.00320199]
[1761028378687,8.12167802,3884.1,3884.0,6.38129308]
[1761028378877,8.12167802,3884.1,3884.0,5.00320199]
[1761028379074,8.12167802,3884.1,3884.0,6.38129308]
[1761028380985,8.12167802,3884.1,3884.0,5.00320199]
[1761028382385,8.12167802,3884.1,3884.0,6.38129308]
[1761028382584,8.12167802,3884.1,3884.0,5.92327739]
[1761028383384,13.58500802,3884.1,3884.0,5.92327739]
[1761028383583,13.58500802,3884.1,3884.0,5.00320199]
[1761028384987,8.58500802,3884.1,3884.0,5.00320199]
[1761028386087,8.58500802,3884.1,3884.0,5.6937298]
[1761028387893,8.58500802,3884.1,3884.0,6.1570698]
[1761028388081,8.58500802,3884.1,3884.0,5.00320199]
[1761028390191,8.58500802,3884.1,3884.0,5.69358036]
[1761028392005,8.12167802,3884.1,3884.0,5.46654199]
[1761028392212,1.5978,3884.1,3884.0,5.46654199]
[1761028392394,1.1226,3884.1,3884.0,6.84463308]
[1761028392699,0.6757,3884.4,3884.3,0.46331]
[1761028392895,0.60206,3885.5,3884.9,0.46323]
[1761028393094,0.46318,3885.4,3884.9,1.38267185]
[1761028393394,0.9583,3885.0,3884.9,1.38267185]
[1761028393798,1.3535,3885.0,3884.9,1.38267185]
[1761028394202,1.7562,3885.0,3884.9,0.91944185]
[1761028394403,8.28007802,3885.0,3884.9,0.91944185]
[1761028394698,1.4736,3884.8,3884.7,0.91944185]
[1761028394899,7.99747802,3884.8,3884.7,0.91944185]
[1761028395406,0.2826,3885.0,3884.6,1.8428628]
[1761028395407,0.6757,3884.7,3884.6,1.8428628]
[1761028395800,0.6757,3884.7,3884.6,6.8428628]
[1761028396194,0.2826,3885.0,3884.9,0.46323]
[1761028396501,0.2826,3885.0,3884.9,1.3824802]
[1761028396800,1.3535,3885.0,3884.9,1.3824802]
[1761028397301,1.3535,3885.0,3884.9,0.46323]
[1761028397506,1.3535,3885.0,3884.9,1.3824802]
[1761028398003,1.3535,3885.0,3884.9,1.8421053]
[1761028398208,1.3535,3885.0,3884.9,0.46323]
[1761028398912,0.5102,3886.0,3885.8,0.46311]
[1761028399206,0.65166709,3886.5,3886.4,0.46305]
[1761028399397,0.00196709,3886.5,3886.4,3.05928029]
[1761028399601,0.00196709,3886.5,3886.4,3.5203917]
[1761028399796,0.00196709,3886.5,3886.4,2.1431566]
[1761028400006,0.23756709,3886.5,3886.4,0.46305]
[1761028400208,0.23756709,3886.5,3886.4,2.0449948]
[1761028401002,0.80766709,3886.5,3886.4,2.0449948]
[1761028401203,0.80766709,3886.5,3886.4,0.67323075]
[1761028401404,0.80766709,3886.5,3886.4,1.58678413]
[1761028401604,0.00196709,3886.5,3886.4,1.58678413]
[1761028401811,0.00196709,3886.5,3886.4,0.67323075]
[1761028402517,1.17896709,3886.5,3886.4,0.67323075]
[1761028404809,0.80766709,3886.5,3886.4,0.67323075]
[1761028405310,1.57146709,3886.5,3886.4,0.67323075]
[1761028405509,1.57146709,3886.5,3886.0,0.68459561]
[1761028405510,0.7638,3886.2,3886.0,0.68459561]
[1761028405714,1.5695,3886.0,3885.9,1.14769561]
[1761028406212,0.5701,3886.3,3885.9,0.68459561]
[1761028406708,0.8057,3886.5,3886.4,0.46305]
[1761028407713,0.808988,3886.5,3886.4,0.46305]
[1761028408012,0.003288,3886.5,3886.4,0.46305]
[1761028408209,0.802688,3886.5,3886.4,0.46305]
[1761028408401,1.185688,3886.5,3886.4,0.46305]
[1761028408806,1.547288,3886.5,3886.4,0.46305]
[1761028409201,0.802688,3886.5,3886.4,0.46305]
[1761028409608,0.9403,3887.2,3886.5,1.1576]
[1761028409912,0.9403,3887.1,3887.0,0.46297]
[1761028410809,0.94217049,3887.1,3887.0,0.46622644]
[1761028411019,1.30377049,3887.1,3887.0,0.46622644]
[1761028411219,7.82764851,3887.1,3887.0,0.00325644]
[1761028411405,1.30377049,3887.1,3887.0,0.00325644]
[1761028412119,7.82764851,3887.1,3887.0,0.00325644]
[1761028412313,1.30377049,3887.1,3887.0,0.00325644]
[1761028414012,7.82764851,3887.1,3887.0,0.00325644]
[1761028421924,8.29061851,3887.1,3887.0,0.00325644]
[1761028422124,7.82764851,3887.1,3887.0,0.00325644]
[1761028422724,8.29061851,3887.1,3887.0,0.00325644]
[1761028422925,7.82764851,3887.1,3887.0,0.00325644]
[1761028424327,8.29060851,3887.1,3887.0,0.00325644]
[1761028424522,1.76673049,3887.1,3887.0,0.00325644]
[1761028424723,1.30377049,3887.1,3887.0,0.00325644]
[1761028425521,7.82764851,3887.1,3887.0,0.00325644]
[1761028426220,7.82764851,3887.1,3887.0,0.68574845]
[1761028427227,7.82764851,3887.1,3887.0,0.00325644]
[1761028428619,7.82764851,3887.1,3887.0,0.46623644]
[1761028428823,7.82764851,3887.1,3887.0,0.00325644]
[1761028429034,0.55917049,3887.1,3887.0,2.1437338]
[1761028429224,0.94217049,3887.1,3887.0,3.51549785]
[1761028429418,0.94217049,3887.1,3887.0,2.1437338]
[1761028429619,1.30377049,3887.1,3887.0,0.46623644]
[1761028430429,0.94217049,3887.1,3887.0,0.46623644]
[1761028431227,1.30377049,3887.1,3887.0,0.46623644]
[1761028432131,7.82764851,3887.1,3887.0,0.46623644]
[1761028432328,0.94217049,3887.1,3887.0,0.46623644]
[1761028432533,1.30377049,3887.1,3887.0,0.46623644]
[1761028437835,0.55917049,3887.1,3887.0,0.46623644]
[1761028438037,1.25857049,3887.1,3887.0,0.46623644]
[1761028439038,7.78244851,3887.1,3887.0,0.00325644]
[1761028440736,7.78244851,3887.1,3887.0,1.38104676]
[1761028442742,7.78244851,3887.1,3887.0,1.40095237]
[1761028443245,7.78244851,3887.1,3887.0,0.00325644]
[1761028443444,7.78244851,3887.1,3887.0,1.40095237]
[1761028444352,0.55917049,3887.1,3887.0,1.40095237]
[1761028445235,1.25857049,3887.1,3887.0,1.40095237]
[1761028446437,0.00187049,3887.1,3887.0,6.40095237]
[1761028446844,0.00187049,3887.1,3887.0,1.40095237]
[1761028447851,1.26457049,3887.1,3887.0,0.00325644]
[1761028448044,1.26457049,3887.1,3887.0,1.40095237]
[1761028448649,1.26457049,3887.1,3887.0,1.83815967]
[1761028449842,1.26457049,3887.1,3887.0,0.00325644]
[1761028451352,0.2356,3888.0,3887.0,0.00325644]
[1761028451353,1.39769593,3888.3,3887.3,0.46294]
[1761028451656,0.6994,3887.4,3887.3,3.35405443]
[1761028451859,7.22327802,3887.4,3887.3,3.35405443]
[1761028452049,7.22327802,3887.4,3887.3,3.71675443]
[1761028452355,7.22610053,3887.4,3887.3,3.71675443]
[1761028452755,7.22610053,3887.4,3887.3,3.35405443]
[1761028453149,7.22610053,3887.4,3887.3,3.71675443]
[1761028453562,7.57920053,3887.4,3887.3,3.71675443]
[1761028453857,7.57920053,3887.4,3887.3,1.3759585]
[1761028454054,7.57920053,3887.4,3887.3,1.9563585]
[1761028454856,7.57920053,3887.4,3887.3,1.3759585]
[1761028455761,7.57920053,3887.4,3887.3,1.9563585]
[1761028456549,7.57920053,3887.4,3887.3,1.3759585]
[1761028456964,8.04213053,3887.4,3887.3,1.3759585]
[1761028457259,1.77537,3887.1,3887.0,0.00325644]
[1761028457459,8.29924802,3887.1,3887.0,0.00325644]
[1761028457853,7.83627802,3887.1,3887.0,0.00325644]
[1761028458048,7.83627802,3887.1,3887.0,1.97551494]
[1761028459463,8.29924802,3887.1,3887.0,1.97551494]
[1761028460162,8.29924802,3887.1,3887.0,0.59955644]
[1761028460864,8.29924802,3887.1,3887.0,0.00325644]
[1761028461362,1.7722,3886.8,3886.7,0.68867012]
[1761028461553,7.83307802,3886.8,3886.7,0.68867012]
[1761028462263,1.3092,3886.7,3886.6,1.28497012]
[1761028462462,7.83307802,3886.7,3886.6,1.28754401]
[1761028462665,7.83307802,3886.7,3886.6,0.59887389]
[1761028463058,7.83307802,3886.7,3886.6,1.28730144]
[1761028463257,7.83307802,3886.7,3886.6,1.02387389]
[1761028463656,7.83307802,3886.7,3886.6,0.69079879]
[1761028464860,7.83307802,3886.7,3886.6,0.00257389]
[1761028466163,12.83307802,3886.7,3886.6,0.00257389]
[1761028466559,1.3672,3885.8,3885.7,0.52359245]
[1761028466759,1.3672,3885.8,3885.7,1.15504837]
[1761028466969,0.7803,3885.3,3885.2,0.425]
[1761028467166,0.3929,3884.9,3884.8,1.27364]
[1761028467371,1.3672,3884.9,3884.8,2.67133593]
[1761028467574,1.3672,3884.9,3884.8,2.6732656]
[1761028467768,1.3672,3884.9,3884.8,2.87968025]
[1761028467965,1.3672,3884.9,3884.8,0.20834432]
[1761028468668,1.3672,3884.9,3884.8,0.72264432]
[1761028468864,1.3672,3884.9,3884.8,1.35574432]
[1761028469465,1.3672,3884.9,3884.8,1.87384432]
[1761028479479,1.3672,3884.9,3884.8,2.33708432]
[1761028481180,0.5129,3885.2,3885.1,0.4632]
[1761028481378,1.6048,3885.2,3885.1,1.4956]
[1761028481879,1.6048,3885.2,3885.1,2.1287]
[1761028482079,1.6048,3885.2,3885.1,1.6655]
[1761028482673,1.6048,3885.2,3885.1,2.1287]
[1761028485877,1.001,3885.2,3885.1,2.1287]
[1761028486077,0.5129,3885.4,3885.3,2.12868]
[1761028486382,0.5129,3885.4,3885.3,3.52637593]
[1761028486975,0.1348,3885.5,3885.3,3.52637593]
[1761028486976,0.1348,3885.5,3885.4,2.12867]
[1761028487376,1.1167,3885.6,3885.5,1.1512]
[1761028487575,1.1167,3885.6,3885.5,0.6331]
[1761028487576,1.6048,3885.6,3885.5,0.6331]
[1761028487873,1.84,3885.5,3885.4,0.6331]
[1761028488277,1.6048,3885.4,3885.3,1.61058]
[1761028488474,1.6048,3885.4,3885.3,0.97748]
[1761028488879,1.6048,3885.4,3885.3,1.61058]
[1761028489184,1.001,3885.4,3885.0,1.88470958]
[1761028489382,1.6048,3885.1,3885.0,1.6106]